[Event "Early-Titled-Tuesday-Blitz-October-17-2023"]
[Site "Chess.com"]
[Date "2023.10.17"]
[Round "8"]
[White "SlavenPastar"]
[Black "ural58"]
[Result "1-0"]
[WhiteElo "2657"]
[BlackElo "2533"]
[TimeControl "180+1"]
[EndTime "9:33:00 PDT"]
[Termination "SlavenPastar won by resignation"]

1. b3 {[%clk 0:03:00.9]} 1... e5 {[%clk 0:02:51.5]} 2. Bb2 {[%clk 0:03:01.5]}
2... Nc6 {[%clk 0:02:50.7]} 3. Nf3 {[%clk 0:03:02.1]} 3... e4 {[%clk 0:02:49.5]}
4. Nd4 {[%clk 0:03:02]} 4... Qf6 {[%clk 0:02:45.1]} 5. e3 {[%clk 0:02:56.9]}
5... Bc5 {[%clk 0:02:43.8]} 6. Nb5 {[%clk 0:02:56.1]} 6... Qxb2 {[%clk
0:02:42.6]} 7. N1c3 {[%clk 0:02:56.6]} 7... Bb6 {[%clk 0:02:33]} 8. Rb1 {[%clk
0:02:53.3]} 8... Qxb1 {[%clk 0:02:33.2]} 9. Qxb1 {[%clk 0:02:45.7]} 9... a6
{[%clk 0:02:32.3]} 10. Na3 {[%clk 0:02:44.8]} 10... Nf6 {[%clk 0:02:32.2]} 11.
Nc4 {[%clk 0:02:38]} 11... Ba7 {[%clk 0:02:31.9]} 12. a4 {[%clk 0:02:37.1]}
12... d5 {[%clk 0:02:31.8]} 13. Na3 {[%clk 0:02:36]} 13... O-O {[%clk
0:02:31.4]} 14. Be2 {[%clk 0:02:35.8]} 14... d4 {[%clk 0:02:28.6]} 15. Nd1
{[%clk 0:02:32.6]} 15... Bf5 {[%clk 0:02:24.2]} 16. O-O {[%clk 0:02:23.6]} 16...
Rad8 {[%clk 0:02:24]} 17. d3 {[%clk 0:02:09.8]} 17... exd3 {[%clk 0:02:19.6]}
18. cxd3 {[%clk 0:02:03.2]} 18... dxe3 {[%clk 0:02:18.2]} 19. Nxe3 {[%clk
0:02:03.5]} 19... Bg6 {[%clk 0:02:18]} 20. Rd1 {[%clk 0:01:59.3]} 20... Nd4
{[%clk 0:02:15]} 21. Bf1 {[%clk 0:01:57.3]} 21... c5 {[%clk 0:02:14.1]} 22. Nac2
{[%clk 0:01:54.4]} 22... Ne6 {[%clk 0:02:02.7]} 23. Nc4 {[%clk 0:01:48.3]} 23...
h6 {[%clk 0:01:52.6]} 24. Qc1 {[%clk 0:01:35.7]} 24... b5 {[%clk 0:01:51.1]} 25.
axb5 {[%clk 0:01:35]} 25... axb5 {[%clk 0:01:51.8]} 26. Ne5 {[%clk 0:01:35.6]}
26... Bh7 {[%clk 0:01:51.9]} 27. Nc6 {[%clk 0:01:35.5]} 27... Rd7 {[%clk
0:01:50.6]} 28. Nxa7 {[%clk 0:01:33.6]} 28... Rxa7 {[%clk 0:01:50.3]} 29. b4
{[%clk 0:01:13.5]} 29... Rc8 {[%clk 0:01:44.5]} 30. bxc5 {[%clk 0:01:13.2]}
30... Rxc5 {[%clk 0:01:42.8]} 31. Qb2 {[%clk 0:01:06.4]} 31... Rd7 {[%clk
0:01:31.5]} 32. g3 {[%clk 0:01:00.5]} 32... Bf5 {[%clk 0:01:19.6]} 33. Ne3
{[%clk 0:00:58.4]} 33... Bg6 {[%clk 0:01:19.4]} 34. d4 {[%clk 0:00:52]} 34...
Rc8 {[%clk 0:01:00.7]} 35. d5 {[%clk 0:00:39.2]} 35... Ng5 {[%clk 0:00:54]} 36.
Qxb5 {[%clk 0:00:34.2]} 36... Be4 {[%clk 0:00:42.1]} 37. Bg2 {[%clk 0:00:31.7]}
37... Bxg2 {[%clk 0:00:41.8]} 38. Kxg2 {[%clk 0:00:31.1]} 38... Rcd8 {[%clk
0:00:41.4]} 39. h4 {[%clk 0:00:27.6]} 39... Nge4 {[%clk 0:00:40.6]} 40. Qb3
{[%clk 0:00:18.9]} 40... Nd6 {[%clk 0:00:36.7]} 41. Ra1 {[%clk 0:00:15.7]} 41...
Rb7 {[%clk 0:00:32.4]} 42. Qd1 {[%clk 0:00:14.6]} 42... Rdb8 {[%clk 0:00:32]}
43. Ra6 {[%clk 0:00:12.1]} 43... Nfe8 {[%clk 0:00:32.1]} 44. Qa4 {[%clk
0:00:11.1]} 44... Rb4 {[%clk 0:00:29.1]} 45. Qc6 {[%clk 0:00:10.2]} 45... Rb2
{[%clk 0:00:26.6]} 46. Ra8 {[%clk 0:00:09.9]} 46... Rxa8 {[%clk 0:00:19.4]} 47.
Qxa8 {[%clk 0:00:10.8]} 47... g6 {[%clk 0:00:19.1]} 48. Nc4 {[%clk 0:00:10.3]}
48... Nxc4 {[%clk 0:00:16]} 49. Qxe8+ {[%clk 0:00:10.4]} 49... Kg7 {[%clk
0:00:16.4]} 50. d6 {[%clk 0:00:10.6]} 50... Rd2 {[%clk 0:00:15.8]} 51. d7 {[%clk
0:00:10.1]} 51... Ne3+ {[%clk 0:00:13.1]} 52. Kf3 {[%clk 0:00:07.1]} 52... Nd1
{[%clk 0:00:11.8]} 53. d8=Q {[%clk 0:00:06.7]} 53... Rxf2+ {[%clk 0:00:12]} 54.
Kg4 {[%clk 0:00:06.7]} 54... h5+ {[%clk 0:00:10.6]} 55. Kh3 {[%clk 0:00:06.7]}
1-0

[Event "Early-Titled-Tuesday-Blitz-October-17-2023"]
[Site "Chess.com"]
[Date "2023.10.17"]
[Round "8"]
[White "LeoLV10"]
[Black "Cambek64"]
[Result "1/2-1/2"]
[WhiteElo "2585"]
[BlackElo "2438"]
[TimeControl "180+1"]
[EndTime "9:33:04 PDT"]
[Termination "Game drawn by repetition"]

1. e4 {[%clk 0:02:54.1]} 1... e6 {[%clk 0:02:59.2]} 2. d4 {[%clk 0:02:49.6]}
2... d5 {[%clk 0:02:57.7]} 3. exd5 {[%clk 0:02:44.6]} 3... exd5 {[%clk
0:02:57.1]} 4. Bd3 {[%clk 0:02:42.4]} 4... Bd6 {[%clk 0:02:57.6]} 5. Nf3 {[%clk
0:02:41.6]} 5... Nf6 {[%clk 0:02:58.2]} 6. Qe2+ {[%clk 0:02:41.7]} 6... Qe7
{[%clk 0:02:57.2]} 7. Qxe7+ {[%clk 0:02:41.5]} 7... Kxe7 {[%clk 0:02:52.8]} 8.
O-O {[%clk 0:02:39.2]} 8... Re8 {[%clk 0:02:50.6]} 9. Nc3 {[%clk 0:02:39.2]}
9... c6 {[%clk 0:02:50.1]} 10. Bg5 {[%clk 0:02:38.4]} 10... Nd7 {[%clk
0:02:50.1]} 11. Rae1+ {[%clk 0:02:38.8]} 11... Kf8 {[%clk 0:02:50.1]} 12. Rxe8+
{[%clk 0:02:24.4]} 12... Kxe8 {[%clk 0:02:35.4]} 13. Re1+ {[%clk 0:02:22.3]}
13... Kf8 {[%clk 0:02:34.1]} 14. Ne5 {[%clk 0:02:22.5]} 14... h6 {[%clk
0:02:31.5]} 15. Bh4 {[%clk 0:02:15.8]} 15... Ne8 {[%clk 0:01:46.8]} 16. f4
{[%clk 0:01:59.8]} 16... f6 {[%clk 0:01:23.1]} 17. Ng6+ {[%clk 0:01:53.5]} 17...
Kf7 {[%clk 0:01:23.1]} 18. Nh8+ {[%clk 0:01:47.3]} 18... Kf8 {[%clk 0:01:22.8]}
19. Be2 {[%clk 0:01:08.4]} 19... g5 {[%clk 0:00:59.9]} 20. fxg5 {[%clk
0:00:45.9]} 20... hxg5 {[%clk 0:00:57.7]} 21. Bf2 {[%clk 0:00:35.7]} 21... Nc7
{[%clk 0:00:48.3]} 22. Bd3 {[%clk 0:00:26.7]} 22... Kg7 {[%clk 0:00:43.2]} 23.
Ng6 {[%clk 0:00:25.6]} 23... Nf8 {[%clk 0:00:38.6]} 24. Ne7 {[%clk 0:00:23.4]}
24... Kf7 {[%clk 0:00:30.7]} 25. Nf5 {[%clk 0:00:21.6]} 25... Bxf5 {[%clk
0:00:29.7]} 26. Bxf5 {[%clk 0:00:22.5]} 26... Nce6 {[%clk 0:00:23]} 27. Ne2
{[%clk 0:00:20.3]} 27... Re8 {[%clk 0:00:22]} 28. c3 {[%clk 0:00:18.3]} 28... b5
{[%clk 0:00:19.6]} 29. g3 {[%clk 0:00:14]} 29... a5 {[%clk 0:00:19.4]} 30. Kf1
{[%clk 0:00:14]} 30... a4 {[%clk 0:00:19.5]} 31. Nc1 {[%clk 0:00:10]} 31... Ng7
{[%clk 0:00:17.3]} 32. Bc2 {[%clk 0:00:06.3]} 32... Rxe1+ {[%clk 0:00:11.1]} 33.
Kxe1 {[%clk 0:00:07.2]} 33... g4 {[%clk 0:00:10.8]} 34. Bd1 {[%clk 0:00:06.5]}
34... f5 {[%clk 0:00:11]} 35. Nd3 {[%clk 0:00:06.9]} 35... Nd7 {[%clk
0:00:09.3]} 36. a3 {[%clk 0:00:07.2]} 36... Ne6 {[%clk 0:00:09.1]} 37. Be3
{[%clk 0:00:06.8]} 37... Kg6 {[%clk 0:00:08.6]} 38. Bc2 {[%clk 0:00:06.9]} 38...
Ng5 {[%clk 0:00:08.7]} 39. Kf2 {[%clk 0:00:04.7]} 39... Ne4+ {[%clk 0:00:08.7]}
40. Kg2 {[%clk 0:00:04.5]} 40... Kf6 {[%clk 0:00:08.9]} 41. Nf4 {[%clk
0:00:03.9]} 41... Bxf4 {[%clk 0:00:08.3]} 42. Bxf4 {[%clk 0:00:03.8]} 42... Nf8
{[%clk 0:00:08.7]} 43. h4 {[%clk 0:00:04.1]} 43... gxh3+ {[%clk 0:00:08.2]} 44.
Kxh3 {[%clk 0:00:04]} 44... Ne6 {[%clk 0:00:08.7]} 45. Kg2 {[%clk 0:00:03.6]}
45... Nxf4+ {[%clk 0:00:08.6]} 46. gxf4 {[%clk 0:00:04.1]} 46... Nd2 {[%clk
0:00:08.2]} 47. Bd3 {[%clk 0:00:01.7]} 47... Nc4 {[%clk 0:00:04.7]} 48. Bxc4
{[%clk 0:00:02]} 48... bxc4 {[%clk 0:00:04.9]} 49. Kf3 {[%clk 0:00:02.4]} 49...
Kg6 {[%clk 0:00:05.1]} 50. Kg3 {[%clk 0:00:02.2]} 50... Kh5 {[%clk 0:00:05.6]}
51. Kh3 {[%clk 0:00:02.2]} 51... Kg6 {[%clk 0:00:05.4]} 52. Kh4 {[%clk
0:00:02.7]} 52... Kh6 {[%clk 0:00:06]} 53. Kh3 {[%clk 0:00:03.2]} 53... Kg6
{[%clk 0:00:06.6]} 54. Kg3 {[%clk 0:00:03.7]} 54... Kh6 {[%clk 0:00:07.3]} 55.
Kg2 {[%clk 0:00:03.7]} 55... Kh5 {[%clk 0:00:07.5]} 56. Kh3 {[%clk 0:00:04.6]}
56... Kg6 {[%clk 0:00:08.1]} 1/2-1/2

[Event "Early-Titled-Tuesday-Blitz-October-17-2023"]
[Site "Chess.com"]
[Date "2023.10.17"]
[Round "8"]
[White "ChessPromotionAlex"]
[Black "Grossboss19"]
[Result "1/2-1/2"]
[WhiteElo "2595"]
[BlackElo "2497"]
[TimeControl "180+1"]
[EndTime "9:33:05 PDT"]
[Termination "Game drawn - insufficient material"]

1. e4 {[%clk 0:03:00.9]} 1... e6 {[%clk 0:02:55.5]} 2. d4 {[%clk 0:03:00.1]}
2... d5 {[%clk 0:02:56.4]} 3. Nc3 {[%clk 0:03:00.5]} 3... dxe4 {[%clk
0:02:54.4]} 4. Nxe4 {[%clk 0:03:01.4]} 4... Nf6 {[%clk 0:02:55.1]} 5. Nxf6+
{[%clk 0:03:01.1]} 5... gxf6 {[%clk 0:02:56]} 6. Nf3 {[%clk 0:02:58.4]} 6... Nd7
{[%clk 0:02:55.4]} 7. g3 {[%clk 0:02:56.7]} 7... b6 {[%clk 0:02:54.7]} 8. Bg2
{[%clk 0:02:56.1]} 8... Bb7 {[%clk 0:02:55.1]} 9. O-O {[%clk 0:02:55.4]} 9...
Bd6 {[%clk 0:02:52.7]} 10. Re1 {[%clk 0:02:49.6]} 10... Qe7 {[%clk 0:02:52.4]}
11. Nh4 {[%clk 0:02:44.9]} 11... Bxg2 {[%clk 0:02:49.3]} 12. Kxg2 {[%clk
0:02:45.8]} 12... O-O-O {[%clk 0:02:46.4]} 13. a4 {[%clk 0:02:34.6]} 13... Nb8
{[%clk 0:02:41.8]} 14. a5 {[%clk 0:02:30.6]} 14... Qd7 {[%clk 0:02:41.4]} 15.
axb6 {[%clk 0:02:30.4]} 15... axb6 {[%clk 0:02:41.4]} 16. Be3 {[%clk 0:02:21.3]}
16... Qc6+ {[%clk 0:02:35.1]} 17. Kg1 {[%clk 0:02:19.2]} 17... f5 {[%clk
0:02:32.4]} 18. Ng2 {[%clk 0:02:12.2]} 18... Be7 {[%clk 0:02:11.9]} 19. Qe2
{[%clk 0:02:08.7]} 19... Bf6 {[%clk 0:02:07.3]} 20. Red1 {[%clk 0:02:08]} 20...
Rd7 {[%clk 0:01:50.2]} 21. Nf4 {[%clk 0:01:55.6]} 21... Rhd8 {[%clk 0:01:48.3]}
22. c3 {[%clk 0:01:55.2]} 22... e5 {[%clk 0:01:44.9]} 23. dxe5 {[%clk
0:01:37.8]} 23... Rxd1+ {[%clk 0:01:44.2]} 24. Rxd1 {[%clk 0:01:38.5]} 24...
Rxd1+ {[%clk 0:01:44.6]} 25. Qxd1 {[%clk 0:01:39.4]} 25... Bxe5 {[%clk
0:01:45.3]} 26. Qh5 {[%clk 0:01:38.1]} 26... Bxf4 {[%clk 0:01:45]} 27. Qxf5+
{[%clk 0:01:37.5]} 27... Qd7 {[%clk 0:01:38.9]} 28. Qxd7+ {[%clk 0:01:24.9]}
28... Kxd7 {[%clk 0:01:38.6]} 29. Bxf4 {[%clk 0:01:24.9]} 29... Na6 {[%clk
0:01:38.2]} 30. Kf1 {[%clk 0:01:23.7]} 30... Nc5 {[%clk 0:01:36.9]} 31. Ke2
{[%clk 0:01:24]} 31... Na4 {[%clk 0:01:37]} 32. Bc1 {[%clk 0:01:21.5]} 32... Ke6
{[%clk 0:01:34.2]} 33. Kd3 {[%clk 0:01:19.2]} 33... b5 {[%clk 0:01:32.7]} 34. f3
{[%clk 0:01:17.5]} 34... Nc5+ {[%clk 0:01:30.2]} 35. Kc2 {[%clk 0:01:17]} 35...
Kd5 {[%clk 0:01:30.1]} 36. Be3 {[%clk 0:01:16.6]} 36... Nd7 {[%clk 0:01:30]} 37.
Bd4 {[%clk 0:01:13]} 37... c5 {[%clk 0:01:29.3]} 38. Bg7 {[%clk 0:01:12.3]}
38... f6 {[%clk 0:01:25.4]} 39. b3 {[%clk 0:01:10.6]} 39... Ke6 {[%clk
0:01:21.5]} 40. Kd2 {[%clk 0:01:06.5]} 40... Ne5 {[%clk 0:01:21.1]} 41. Ke3
{[%clk 0:01:03.2]} 41... Nf7 {[%clk 0:01:17.4]} 42. Bf8 {[%clk 0:01:01.9]} 42...
c4 {[%clk 0:01:14.4]} 43. bxc4 {[%clk 0:01:02.1]} 43... bxc4 {[%clk 0:01:15.3]}
44. Kd4 {[%clk 0:00:57.3]} 44... Ne5 {[%clk 0:01:14.2]} 45. f4 {[%clk 0:00:55]}
45... Nf3+ {[%clk 0:01:11.4]} 46. Kxc4 {[%clk 0:00:55.2]} 46... Nxh2 {[%clk
0:01:12.3]} 47. Bc5 {[%clk 0:00:45.3]} 47... f5 {[%clk 0:01:02]} 48. Bg1 {[%clk
0:00:43.2]} 48... Nf1 {[%clk 0:00:57.7]} 49. Bf2 {[%clk 0:00:42.9]} 49... Nd2+
{[%clk 0:00:58.2]} 50. Kd3 {[%clk 0:00:42.9]} 50... Ne4 {[%clk 0:00:58.2]} 51.
Be1 {[%clk 0:00:43.3]} 51... Kd5 {[%clk 0:00:55.6]} 52. c4+ {[%clk 0:00:42]}
52... Kd6 {[%clk 0:00:53.6]} 53. Kd4 {[%clk 0:00:36.4]} 53... h6 {[%clk
0:00:46.1]} 54. g4 {[%clk 0:00:31.7]} 54... Nf6 {[%clk 0:00:41.1]} 55. Bb4+
{[%clk 0:00:22.2]} 55... Ke6 {[%clk 0:00:39]} 56. g5 {[%clk 0:00:20.1]} 56...
hxg5 {[%clk 0:00:35.9]} 57. fxg5 {[%clk 0:00:21]} 57... Ne4 {[%clk 0:00:36.2]}
58. g6 {[%clk 0:00:20.1]} 58... Kf6 {[%clk 0:00:35.1]} 59. Ba3 {[%clk
0:00:18.9]} 59... Kxg6 {[%clk 0:00:34.5]} 60. Bc1 {[%clk 0:00:19.4]} 60... Kf7
{[%clk 0:00:33.4]} 61. Kd5 {[%clk 0:00:18.3]} 61... Kg6 {[%clk 0:00:31.7]} 62.
Ke5 {[%clk 0:00:17.8]} 62... Kf7 {[%clk 0:00:30.5]} 63. Be3 {[%clk 0:00:17]}
63... Ke8 {[%clk 0:00:27.9]} 64. Bf4 {[%clk 0:00:16.4]} 64... Kd7 {[%clk
0:00:26.2]} 65. Kxf5 {[%clk 0:00:16.7]} 65... Nc5 {[%clk 0:00:20.7]} 66. Ke5
{[%clk 0:00:16.9]} 66... Kc6 {[%clk 0:00:21.1]} 67. Kd4 {[%clk 0:00:16.9]} 67...
Ne6+ {[%clk 0:00:20.9]} 68. Ke5 {[%clk 0:00:17.5]} 68... Nxf4 {[%clk 0:00:21.5]}
69. Kxf4 {[%clk 0:00:18.4]} 69... Kc5 {[%clk 0:00:22.4]} 70. Ke4 {[%clk
0:00:19]} 70... Kxc4 {[%clk 0:00:23.3]} 1/2-1/2

[Event "Early-Titled-Tuesday-Blitz-October-17-2023"]
[Site "Chess.com"]
[Date "2023.10.17"]
[Round "8"]
[White "wanyaland"]
[Black "pankajfm"]
[Result "1-0"]
[WhiteElo "2423"]
[BlackElo "2145"]
[TimeControl "180+1"]
[EndTime "9:33:05 PDT"]
[Termination "wanyaland won by resignation"]

1. d4 {[%clk 0:02:58.8]} 1... Nf6 {[%clk 0:02:59.9]} 2. c4 {[%clk 0:02:58.3]}
2... g6 {[%clk 0:02:59.9]} 3. Nc3 {[%clk 0:02:57.3]} 3... Bg7 {[%clk 0:03:00.6]}
4. e4 {[%clk 0:02:57.3]} 4... d6 {[%clk 0:03:01.3]} 5. f3 {[%clk 0:02:57.9]}
5... O-O {[%clk 0:03:02.1]} 6. Nge2 {[%clk 0:02:58.4]} 6... c5 {[%clk 0:03:02]}
7. Be3 {[%clk 0:02:59]} 7... Nc6 {[%clk 0:02:56.7]} 8. Qd2 {[%clk 0:02:58.3]}
8... e6 {[%clk 0:02:43.4]} 9. O-O-O {[%clk 0:02:56.5]} 9... Qa5 {[%clk
0:02:40.9]} 10. Kb1 {[%clk 0:02:53.8]} 10... a6 {[%clk 0:02:40.1]} 11. dxc5
{[%clk 0:02:47.8]} 11... dxc5 {[%clk 0:02:40]} 12. Nc1 {[%clk 0:02:48.2]} 12...
Rd8 {[%clk 0:02:30.9]} 13. Qe1 {[%clk 0:02:47.5]} 13... Rxd1 {[%clk 0:02:20.3]}
14. Qxd1 {[%clk 0:02:46.4]} 14... Nd7 {[%clk 0:02:12.2]} 15. Nb3 {[%clk
0:02:43.6]} 15... Qb6 {[%clk 0:01:55.9]} 16. Na4 {[%clk 0:02:42.4]} 16... Qb4
{[%clk 0:01:49.7]} 17. Naxc5 {[%clk 0:02:41.3]} 17... Nxc5 {[%clk 0:01:34.7]}
18. Bxc5 {[%clk 0:02:35.4]} 18... Qa4 {[%clk 0:01:34.3]} 19. Be2 {[%clk
0:02:30.7]} 19... b5 {[%clk 0:01:32.9]} 20. Qc2 {[%clk 0:02:00.3]} 20... Bb7
{[%clk 0:01:19.5]} 21. Rd1 {[%clk 0:01:37.4]} 21... Rc8 {[%clk 0:01:16.4]} 22.
Rd7 {[%clk 0:01:34.9]} 22... Ba8 {[%clk 0:01:14.4]} 23. Qd3 {[%clk 0:01:12.4]}
23... bxc4 {[%clk 0:01:07.6]} 24. Qxc4 {[%clk 0:01:08.4]} 24... Qxc4 {[%clk
0:01:07.5]} 25. Bxc4 {[%clk 0:01:08.7]} 25... Ne5 {[%clk 0:01:06.8]} 26. Bxa6
{[%clk 0:00:52.5]} 26... Rb8 {[%clk 0:00:34.3]} 27. Ra7 {[%clk 0:00:45.3]} 27...
Nc6 {[%clk 0:00:30.6]} 28. Rxa8 {[%clk 0:00:35.2]} 28... Rxa8 {[%clk 0:00:30.4]}
29. Bb7 {[%clk 0:00:35.4]} 29... Rb8 {[%clk 0:00:29.1]} 30. Bxc6 {[%clk
0:00:35]} 30... Rc8 {[%clk 0:00:29.3]} 31. Bb5 {[%clk 0:00:32.3]} 31... Be5
{[%clk 0:00:26.2]} 32. h3 {[%clk 0:00:30.8]} 32... Bg3 {[%clk 0:00:24.4]} 33. a4
{[%clk 0:00:29.7]} 33... f5 {[%clk 0:00:20]} 34. Bd7 {[%clk 0:00:26.4]} 34...
Rd8 {[%clk 0:00:17.8]} 35. Bxe6+ {[%clk 0:00:26]} 35... Kg7 {[%clk 0:00:18.1]}
36. Bd4+ {[%clk 0:00:21.3]} 36... Kh6 {[%clk 0:00:17.2]} 37. exf5 {[%clk
0:00:21.5]} 37... gxf5 {[%clk 0:00:17.6]} 38. Bxf5 {[%clk 0:00:20.3]} 38... Rb8
{[%clk 0:00:13.7]} 39. Ka2 {[%clk 0:00:18.5]} 39... Rb4 {[%clk 0:00:12]} 40. a5
{[%clk 0:00:15.6]} 40... Bc7 {[%clk 0:00:11.7]} 41. Bc3 {[%clk 0:00:11.3]} 41...
Ra4+ {[%clk 0:00:10.5]} 42. Kb1 {[%clk 0:00:10.3]} 42... Kg5 {[%clk 0:00:06.6]}
43. g4 {[%clk 0:00:09.8]} 43... h6 {[%clk 0:00:06.3]} 44. Bd7 {[%clk 0:00:05.4]}
44... Rc4 {[%clk 0:00:05]} 45. Bb5 {[%clk 0:00:03.1]} 45... Rf4 {[%clk
0:00:03.5]} 46. Bd2 {[%clk 0:00:02.4]} 1-0

[Event "Early-Titled-Tuesday-Blitz-October-17-2023"]
[Site "Chess.com"]
[Date "2023.10.17"]
[Round "8"]
[White "Ermito2020"]
[Black "sokidze"]
[Result "0-1"]
[WhiteElo "2612"]
[BlackElo "2794"]
[TimeControl "180+1"]
[EndTime "9:33:14 PDT"]
[Termination "sokidze won by resignation"]

1. e4 {[%clk 0:03:00.9]} 1... c5 {[%clk 0:03:00]} 2. Nf3 {[%clk 0:03:00.6]} 2...
Nc6 {[%clk 0:03:00.4]} 3. Bb5 {[%clk 0:03:00]} 3... g6 {[%clk 0:02:59.6]} 4.
Bxc6 {[%clk 0:02:58.2]} 4... dxc6 {[%clk 0:02:59.3]} 5. d3 {[%clk 0:02:58.9]}
5... Bg7 {[%clk 0:02:59]} 6. h3 {[%clk 0:02:59.5]} 6... Nf6 {[%clk 0:02:59.1]}
7. Nc3 {[%clk 0:02:58.3]} 7... Nd7 {[%clk 0:02:58.1]} 8. Be3 {[%clk 0:02:55.8]}
8... e5 {[%clk 0:02:58.2]} 9. Qd2 {[%clk 0:02:55.8]} 9... h6 {[%clk 0:02:58.5]}
10. O-O {[%clk 0:02:54.5]} 10... b6 {[%clk 0:02:58.6]} 11. Nh2 {[%clk
0:02:53.8]} 11... Nf8 {[%clk 0:02:58.8]} 12. f4 {[%clk 0:02:50.4]} 12... exf4
{[%clk 0:02:59]} 13. Bxf4 {[%clk 0:02:51.3]} 13... Ne6 {[%clk 0:02:58.9]} 14.
Bg3 {[%clk 0:02:52]} 14... Qg5 {[%clk 0:02:54.5]} 15. Qxg5 {[%clk 0:02:34.8]}
15... hxg5 {[%clk 0:02:32.9]} 16. Nf3 {[%clk 0:02:33.5]} 16... g4 {[%clk
0:01:45]} 17. hxg4 {[%clk 0:02:34.4]} 17... Nd4 {[%clk 0:01:45.6]} 18. Nxd4
{[%clk 0:02:32.3]} 18... cxd4 {[%clk 0:01:44.8]} 19. Nd1 {[%clk 0:02:26.7]}
19... Bxg4 {[%clk 0:01:43.6]} 20. Nf2 {[%clk 0:02:27.3]} 20... Be6 {[%clk
0:01:41.6]} 21. Bf4 {[%clk 0:02:22.5]} 21... O-O-O {[%clk 0:01:39.4]} 22. g3
{[%clk 0:02:20.3]} 22... Rh5 {[%clk 0:01:33.9]} 23. Kg2 {[%clk 0:02:17.5]} 23...
Rdh8 {[%clk 0:01:32.9]} 24. Rh1 {[%clk 0:02:16.4]} 24... Rxh1 {[%clk 0:01:32.8]}
25. Nxh1 {[%clk 0:02:11.4]} 25... f6 {[%clk 0:01:15.6]} 26. Nf2 {[%clk
0:02:09.9]} 26... g5 {[%clk 0:01:15.4]} 27. Bd2 {[%clk 0:02:09.5]} 27... Bf8
{[%clk 0:01:09.2]} 28. b3 {[%clk 0:02:04.2]} 28... Bd6 {[%clk 0:01:07.2]} 29.
Rh1 {[%clk 0:02:00.9]} 29... Rxh1 {[%clk 0:01:05.9]} 30. Kxh1 {[%clk 0:02:01.8]}
30... Bxg3 {[%clk 0:01:05.4]} 31. Nd1 {[%clk 0:02:00.2]} 31... Bg4 {[%clk
0:01:02.9]} 32. Nb2 {[%clk 0:01:58.9]} 32... Bf3+ {[%clk 0:01:01.7]} 33. Kg1
{[%clk 0:01:58]} 33... Kd7 {[%clk 0:00:57.1]} 34. c3 {[%clk 0:01:51]} 34... Be5
{[%clk 0:00:50.5]} 35. Nc4 {[%clk 0:01:50]} 35... Be2 {[%clk 0:00:28.5]} 36.
Nxe5+ {[%clk 0:01:46.8]} 36... fxe5 {[%clk 0:00:29.4]} 37. cxd4 {[%clk
0:01:46.4]} 37... exd4 {[%clk 0:00:30]} 38. Kf2 {[%clk 0:01:23.4]} 38... Bxd3
{[%clk 0:00:30.3]} 39. Kf3 {[%clk 0:01:23.6]} 39... g4+ {[%clk 0:00:29]} 40.
Kxg4 {[%clk 0:01:19.3]} 40... Bxe4 {[%clk 0:00:29.1]} 41. Kf4 {[%clk 0:01:20]}
41... Bb1 {[%clk 0:00:29.1]} 42. a3 {[%clk 0:01:19.9]} 42... Ke6 {[%clk
0:00:27.2]} 43. Be1 {[%clk 0:01:11.3]} 43... c5 {[%clk 0:00:26.2]} 44. Kf3
{[%clk 0:01:11.1]} 44... Bc2 {[%clk 0:00:24.5]} 45. Bg3 {[%clk 0:01:08]} 45...
Bxb3 {[%clk 0:00:14.4]} 46. Bb8 {[%clk 0:01:08.2]} 46... Kd5 {[%clk 0:00:14.9]}
47. Bxa7 {[%clk 0:01:07.2]} 47... b5 {[%clk 0:00:15.4]} 48. Ke2 {[%clk
0:01:04.1]} 48... c4 {[%clk 0:00:12.7]} 49. Kd2 {[%clk 0:01:03.9]} 49... c3+
{[%clk 0:00:09.7]} 50. Kd3 {[%clk 0:01:02.2]} 50... Bc4+ {[%clk 0:00:09.9]} 51.
Kc2 {[%clk 0:01:02.3]} 51... Be2 {[%clk 0:00:08.2]} 52. Kb3 {[%clk 0:00:25.4]}
52... Bd1+ {[%clk 0:00:07.8]} 53. Ka2 {[%clk 0:00:25.4]} 53... Kc4 {[%clk
0:00:07.6]} 54. Kb1 {[%clk 0:00:20.6]} 54... d3 {[%clk 0:00:07.4]} 55. Kc1
{[%clk 0:00:20.3]} 55... Bb3 {[%clk 0:00:06.7]} 56. Be3 {[%clk 0:00:20.9]} 56...
d2+ {[%clk 0:00:06]} 57. Bxd2 {[%clk 0:00:21.1]} 57... cxd2+ {[%clk 0:00:06.9]}
58. Kxd2 {[%clk 0:00:21.5]} 58... Ba4 {[%clk 0:00:07.2]} 59. Kc1 {[%clk
0:00:21]} 59... Kb3 {[%clk 0:00:07.7]} 0-1